Cogmind - Beta 10 @@@ ROGUE MODE // 2020.09.20 @ 20:28:36 // AFD2020/Player2 Player: Hermelin Result: Core destroyed Performance ------------- Evolutions (1) 500 Regions Visited (2) 400 Robots Destroyed (17) 85 Value Destroyed (446) 446 Prototype IDs (3) 60 Alien Tech Used (0) 0 Bonus (-23) -23 TOTAL SCORE: 1468 Bonus ------- High Alert Combat Kills 8 Follower Combat Kills 107 Friendly Fire -138 Cogmind --------- Core Integrity 0/400 Matter 269/300 Energy 247/250 System Corruption 0% Temperature Cool (0) Movement Rolling (100) Ox1 Location -9/Materials Parts ------- > --- POWER (1) -------- Ion Engine > --- PROPULSION (2) --- Wheel Compact Wheel > --- UTILITY (3) ------ Improved Heat Sink Large Storage Unit Large Storage Unit > --- WEAPON (3) ------- Heavy EM Pulse Gun Light Assault Rifle > --- INVENTORY (16) --- Light Ion Engine Light Treads Medium Storage Unit Medium Storage Unit Signal Interpreter Improved Terrain Scanner Seismic Analyzer Hardened Light Armor Plating Heavy EM Pulse Gun Heavy EM Pulse Gun Peak State ------------ > --- POWER ------------ Ion Engine > --- PROPULSION ------- Light Treads Compact Wheel > --- UTILITY ---------- Large Storage Unit Large Storage Unit Hardened Light Armor Plating > --- WEAPON ----------- Heavy EM Pulse Gun Small Laser Light Assault Rifle > --- INVENTORY -------- Light Ion Engine Light Treads Wheel Improved Heat Sink Medium Storage Unit Medium Storage Unit Signal Interpreter Improved Terrain Scanner Seismic Analyzer Hardened Light Armor Plating [Rating: 12] Favorites ----------- Power Light Ion Engine Engine Light Ion Engine Propulsion Compact Wheel Treads Light Treads Wheel Compact Wheel Utility Large Storage Unit Device Improved Heat Sink Storage Large Storage Unit Protection Hardened Light Armor Plating Weapon Assault Rifle Energy Gun Medium Laser Ballistic Gun Assault Rifle Build | -11 -10 -9 ------- Run | Scr Mat Mat Slots Evolved 2 | . . 2 Power . | . . . Propulsion . | . . . Utility 1 | . . 1 Weapon 1 | . . 1 Parts Attached 18 | 7 3 8 Power 3 | 1 . 2 Engine 3 | 1 . 2 Core . | . . . Reactor . | . . . Propulsion 3 | 2 . 1 Treads 1 | 1 . . Leg . | . . . Wheel 2 | 1 . 1 Hover . | . . . Flight . | . . . Utility 6 | 2 2 2 Device 1 | . . 1 Storage 4 | 2 2 . Processor . | . . . Hackware . | . . . Protection 1 | . . 1 Artifact . | . . . Weapon 6 | 2 1 3 Energy Gun 3 | 1 . 2 Energy Cannon . | . . . Ballistic Gun 3 | 1 1 1 Ballistic Cannon . | . . . Launcher . | . . . Special Weapon . | . . . Impact Weapon . | . . . Slashing Weapon . | . . . Piercing Weapon . | . . . Special Melee Weapon . | . . . Unidentified Prototypes . | . . . Parts Lost 7 | . . 7 Power 2 | . . 2 Propulsion 1 | . . 1 Utility 1 | . . 1 Weapon 3 | . . 3 Highest Loss Streak 3 | . . 3 Average Slot Usage (%) 90 | . 100 85 Engine 11 | . 14 10 Treads 11 | . 14 10 Wheel 12 | . 14 11 Storage 24 | . 28 22 Protection 4 | . . 7 Energy Gun 12 | . 14 11 Ballistic Gun 11 | . 14 10 Naked Turns . | . . . Heaviest Build 47 | 15 39 47 Greatest Support 20 | 20 16 16 Greatest Overweight (x) 2 | 1 2 2 Average Overweight (x) . | . . 2 Largest Inventory Capacity 16 | 8 16 16 Average Capacity 12 | 6 9 16 Most Carried 12 | 8 10 12 Average Carried 7 | 3 6 9 Final Capacity 16 | 8 16 16 Final Carried 10 | 8 10 10 Class Distribution -------------------- 96% | Mutant 3% | Tank Dominant Class ---------------- Mutant | -10/Materials Mutant | -9/Materials Resources | -11 -10 -9 ----------- Run | Scr Mat Mat Matter Collected 504 | 279 33 192 Remotely . | . . . Salvage Created 684 | 108 201 375 Parts 42 | 6 12 24 Haulers Intercepted . | . . . Recyclers Shooed . | . . . Parts Field Recycled . | . . . Retrieved Matter . | . . . Parts Self-Destructed . | . . . Prevented . | . . . Kills | -11 -10 -9 ------- Run | Scr Mat Mat Combat Hostiles Destroyed 14 | . 4 10 Guns 14 | . 4 10 Classes Destroyed 5 | 2 2 1 Tunneler 1 | 1 . . Recycler 1 | 1 . . Watcher 1 | . 1 . Swarmer 3 | . . 3 Grunt 11 | . 4 7 Best Kill Streak 4 | 2 4 3 Combat Bots Only 3 | . 3 3 Max Kills in Single Turn 2 | 2 1 1 Gunslinging . | . . . Exploded . | . . . Melee . | . . . Uniques/NPCs Destroyed . | . . . Combat | -11 -10 -9 -------- Run | Scr Mat Mat Damage Taken 1039 | . . 1039 Core 244 | . . 244 Absorbed by Shields . | . . . Core Remaining (%) 97 | 100 95 . Volleys Fired 78 | 3 13 62 Largest 3 | 2 2 3 Hottest 105 | 70 70 105 Shots Fired 129 | 6 24 99 Gun 129 | 6 24 99 Cannon . | . . . Launcher . | . . . Special . | . . . Kinetic 74 | 3 13 58 Thermal 45 | 3 11 31 Explosive . | . . . Electromagnetic 10 | . . 10 Robot Hit Streak 13 | 3 8 13 Robot Miss Streak 5 | 1 4 5 Penetration Max . | . . . Secondary Targets 1 | . . 1 Max Gunslinging Chain 1 | . . 1 Shots Hit Robots 83 | 4 13 66 Core Hits 29 | 3 6 20 Critical Hits 1 | . . 1 Critical Kills . | . . . Critical Parts Destroyed 1 | . . 1 Melee Attacks . | . . . Impact . | . . . Slashing . | . . . Piercing . | . . . Sneak Attacks . | . . . Combat Hostiles . | . . . Follow-up Attacks . | . . . Damage Inflicted 1131 | 61 156 914 Guns 1131 | 61 156 914 Cannons . | . . . Explosions . | . . . Melee . | . . . Ramming . | . . . Kinetic 614 | 23 80 511 Thermal 408 | 38 76 294 Explosive . | . . . Electromagnetic 109 | . . 109 Impact . | . . . Slashing . | . . . Piercing . | . . . Highest Corruption . | . . . Average Corruption . | . . . Corruption Purged . | . . . Overload Shots . | . . . Overflow Damage . | . . . Projectiles . | . . . Explosions . | . . . Melee . | . . . Knockbacks . | . . . Impact . | . . . Kinetic . | . . . Secondary . | . . . Self-Inflicted Damage . | . . . Shots . | . . . Rammed . | . . . Targets Rammed . | . . . Kicked . | . . . Crushed . | . . . Highest Temperature 213 | 27 36 213 Average Temperature 51 | 14 14 63 Received Heat Transfer 366 | . . 366 Siege Activations . | . . . Robots Corrupted . | . . . Combat Hostiles . | . . . Parts Fried . | . . . Impact Corruptions . | . . . Robots Melted . | . . . Combat Hostiles . | . . . Parts Melted . | . . . Heat Transferred 1064 | 111 222 731 Parts Sabotaged . | . . . Parts Stolen . | . . . Parts Stripped . | . . . Power Chain Reactions . | . . . Missiles Intercepted . | . . . Alert | -11 -10 -9 ------- Run | Scr Mat Mat Peak Influence 405 | 10 198 405 Initial 83 | . 6 83 Average 158 | 3 139 228 Maximum Alert Level 2 | . . 2 Low Security (%) 72 | 100 100 45 Level 1 26 | . . 52 Level 2 1 | . . 2 Level 3 . | . . . Level 4 . | . . . Level 5 . | . . . High Security . | . . . Max Security . | . . . Squads Dispatched 6 | . 2 4 Investigation 3 | . . 3 Extermination . | . . . Reinforcement 3 | . 2 1 Assault . | . . . Garrison . | . . . Intercept . | . . . Construction Impeded . | . . . Haulers Reinforced . | . . . Stealth | -11 -10 -9 --------- Run | Scr Mat Mat Distress Signals 3 | . . 3 Communications Jammed . | . . . Distress Signals . | . . . Times Spotted 39 | . 9 30 Peak Tracking Total 12 | . 3 12 Tactical Retreats 3 | . . 3 Traps | -11 -10 -9 ------- Run | Scr Mat Mat Traps Triggered 1 | . 1 . Indirectly . | . . . Trap Hack Attempts . | . . . Triggered . | . . . Disarmed . | . . . Reprogrammed . | . . . Reused . | . . . Traps Extracted . | . . . Installed . | . . . Triggered . | . . . Machines | -11 -10 -9 ---------- Run | Scr Mat Mat Machines Disabled . | . . . Max in Single Turn . | . . . Machines Sabotaged . | . . . Garrisons Compromised . | . . . Overloaded Fab Kills . | . . . Fab Network Shutdowns . | . . . Hacking | -11 -10 -9 --------- Run | Scr Mat Mat Machines Accessed 3 | . . 3 Terminals 3 | . . 3 Fabricators . | . . . Repair Stations . | . . . Recycling Units . | . . . Scanalyzers . | . . . Garrison Access . | . . . Total Hacks 12 | . . 12 Successful 5 | . . 5 Failed 7 | . . 7 Catastrophic 3 | . . 3 Database Lockouts . | . . . Manual 4 | . . 4 Terminals 12 | . . 12 Fabricators . | . . . Repair Stations . | . . . Recycling Units . | . . . Scanalyzers . | . . . Garrison Access . | . . . Terminal Hacks 4 | . . 4 Prototype ID Bank 1 | . . 1 Branch Access Points 1 | . . 1 Terminal Index 1 | . . 1 Registered Components 1 | . . 1 Fabricator Hacks . | . . . Repair Station Hacks . | . . . Recycling Unit Hacks . | . . . Scanalyzer . | . . . Garrison Access Hacks . | . . . Unauthorized Hacks 1 | . . 1 Terminals 1 | . . 1 Track 1 | . . 1 Fabricators . | . . . Repair Stations . | . . . Recycling Units . | . . . Scanalyzers . | . . . Garrison Access . | . . . Data Cores Recovered . | . . . Used . | . . . Hacking Detections 3 | . . 3 Full Trace Events 3 | . . 3 Feedback Events . | . . . Feedback Blocked . | . . . Robot Schematics Acquired . | . . . Robots Built . | . . . Matter . | . . . Time . | . . . Total Robot Build Rating . | . . . Part Schematics Acquired . | . . . Parts Built . | . . . Matter . | . . . Time . | . . . Total Part Build Rating . | . . . Parts Repaired . | . . . Time . | . . . Parts Recycled . | . . . Recycled Matter . | . . . Retrieved Matter . | . . . Retrieved Components . | . . . Parts Scanalyzed . | . . . Part Schematics Acquired . | . . . Parts Damaged . | . . . Bothacking | -11 -10 -9 ------------ Run | Scr Mat Mat Used RIF Installer . | . . . Robots Hacked . | . . . Non-combat . | . . . Combat . | . . . Robot Hacks Applied . | . . . Relay Couplers Released . | . . . Robots Rewired . | . . . Allies Hacked . | . . . Hacks Repelled . | . . . Allies | -11 -10 -9 -------- Run | Scr Mat Mat Total Allies 1 | . 1 . Largest Group 1 | . 1 1 Highest-Rated Group 61 | . 57 61 Highest-Rated Ally 61 | . 57 61 Total Orders . | . . . Ally Attacks 56 | . 6 50 Total Damage 452 | . 52 400 Kills 6 | . . 6 Allies Corrupted . | . . . Allies Melted . | . . . Intel | -11 -10 -9 ------- Run | Scr Mat Mat Robot Analysis Total . | . . . Derelict Logs Recovered . | . . . Drone Launches . | . . . Drone Recoveries . | . . . Exploration | -11 -10 -9 ------------- Run | Scr Mat Mat Turns Passed 637 | 126 185 326 Spaces Moved 318 | 68 120 130 Core 7 | 7 . . Treads 58 | 58 . . Legs . | . . . Wheels 253 | 3 120 130 Hover . | . . . Flight . | . . . Fastest Speed 50 | 50 100 120 Average Speed 119 | 146 104 120 Slowest Speed 160 | 160 120 120 Overloaded Moves . | . . . Propulsion Burnouts . | . . . Robots Hopped . | . . . Cave-ins Triggered . | . . . Exploration Rate (%) 20 | 6 32 23 Regions Visited 2 Branch Regions . Pre-discovered Areas . | . . . Known Exits Taken . | . . . Unknown Exits Taken 2 | 1 1 . Scrap Searched . | . . . Spaces Dug . | . . . Terrain Destroyed . | . . . Melee . | . . . Projectile . | . . . AOE . | . . . Terrain Rammed . | . . . Walls Destroyed . | . . . Machines Disabled . | . . . Actions | -11 -10 -9 --------- Run | Scr Mat Mat Total 448 | 85 158 205 Wait 12 | . 11 1 Move 316 | 67 119 130 Hop . | . . . Pick Up 18 | 8 6 4 Fast Attach 12 | 7 1 4 Attach 4 | . . 4 Detach . | . . . Swap 2 | . 2 . Drop 6 | . 6 . Fire 78 | 3 13 62 Melee . | . . . Ram . | . . . Kick . | . . . Crush . | . . . Escape Stasis . | . . . Rewire . | . . . Trap . | . . . Miscellaneous . | . . . Route ------- -11/Scrapyard -10/Materials -9/Materials (discovered 1 exit: Min) History --------- Turn | Location | Event 30 | -11/Scrapyard | Discovered new exit (range 16) 127 | -11/Scrapyard | Entered Materials 298 | -10/Materials | Discovered new exit (range 3) 312 | -10/Materials | Entered another Materials area 312 | -9/Materials | Accompanied by 1 ally 312 | -9/Materials | Evolved 2 slots: Utility x1, Weapon x1 318 | -9/Materials | Build established: Mutant 431 | -9/Materials | Identified exit to Mines 522 | -9/Materials | Core integrity fell below 50% 533 | -9/Materials | Lost 3 parts (2p1w) 614 | -9/Materials | Core integrity fell below 20% 638 | -9/Materials | Core destroyed Last Messages --------------- 00581_ Acquired Hvy. EM Pulse Gun. 00583_ K-01 Serf cleans the Nuclear Reactor. 00588_ K-01 Serf collects debris. 00593_ K-01 Serf cleans the Nuclear Reactor. 00595_ G-34 Mercenary destroyed. 00607_ Sml. Laser destroyed. 00610_ K-01 Serf collects debris. 00612_ Destroyed Sml. Laser. 00616_ S-10 Pest destroyed. 00616_ Lgt. Treads destroyed. 00617_ Hrd. Light Armor Plating destroyed. 00620_ S-10 Pest misfires. 00623_ K-01 Serf collects debris. 00624_ S-10 Pest IFF system glitched. 00628_ Destroyed Flight Unit. 00628_ S-10 Pest destroyed. 00631_ G-34 Mercenary destroyed. 00631_ Switching to secondary target: Y-45 Defender. 00633_ K-01 Serf collects debris. 00634_ Y-45 Defender misfires. Map ----- +----------------------------------------------------+ | """ + #???????????????????????????????????????? | | # #???????????????????????????????????????? | | # #???????????????????????????????????????? | | # ########????????????????????????????????? | | ###### # #????????????????????????????????? | | ?????# # #????????????????????????????????? | | ?????# # #????????????????????????????????? | | ###### + """ #????????????????????????????????? | | # """ #????????????????????????????????? | | # """ #????????????????????????????????? | | "" ########????????????????????????????????? | | "" #???????????????????????????????????????? | | T" #???????????????????????????????????????? | | % "" #?????????????????????? #??????????????? | | "" #?????????????????????? #??????????????? | | #????????????????????? #??????????????? | | #????????????????????# ???????????????? | | #######????????###+## ????????????????? | | #????????# ?????????????????? | | ########## ??????????????????? | | * """ # # ???????????????????? | | % """ # """ # Y #????????????????????? | | %""" # """ # Y#??#+###?????????????? | | % ! ## """ =# a # [%* ?????????????? | | ## *+% +%""""???????????????? | | """ ## """ #@ #????????????????????? | | """ ##! """ #!###????????????????????? | | """ ## """ #%#??????????????????????? | | =! ## #[#??????????????????????? | | %=== #######/###=#??????????????????????? | | +#########%!%=# # #??????????????????????? | | ?????????#!=%*# # #??????????????????????? | | ?????????#= =%# # ??????????????????????? | | ?????????#% =# #a ??????????????????????? | | ?????????#%%==# """ + #??????????????????????? | | ?????????#*==*# """ # #??????????????????????? | | ?????????#=% # """ # ???????????????????????? | | ?????????# # # ???????????????????????? | | ?????????# ####/###### ???????????????????????? | | ?????????# #? ???????????????????????? | | ?????????# #? ???????????????????????? | | ?????????# = #?????????????????????????? | | ?????????# #?????????????????????????? | | ?????????# """ ##+#?????????????????????????? | | ?????????# """ #????????????????????????????? | | ?????????# """ #????????????????????????????? | | ?????????# #????????????????????????????? | | ?????????# #????????????????????????????? | | ?????????# #######????????????????????????????? | | ?????????# ???????????????????????????????????? | +----------------------------------------------------+ Best States ------------- Heat Dissipation 42 Energy Generation 10 Energy Capacity 250 Matter Stores 300 Matter Capacity 300 Sight Range 16 Terrain Scan Density 10 Armor Coverage 150 Evasion (%) 40 Recoil Reduction 1 Item Schematics ----------------- None Robot Schematics ------------------ None Fabricated ------------ Nothing Alien Tech Used ----------------- None Achievements -------------- None Challenges ------------ None Player 2 | -11 -10 -9 ---------- Run | Scr Mat Mat Slots Evolved 2 | . 2 . Power . | . . . Propulsion . | . . . Utility 1 | . 1 . Weapon 1 | . 1 . Parts Attached 18 | . 7 11 Parts Lost 10 | . . 10 Damage Taken 930 | . 24 906 Core 171 | . 12 159 Player 2/Cogmind (%) 41 | . 100 39 Absorbed by Shields . | . . . Damage Inflicted 452 | . 52 400 Player 2/Cogmind (%) 28 | . 25 30 Combat Hostiles Destroyed 5 | . . 5 Player 2/Cogmind (%) 26 | . . 33 Game ------ Seed BottomlessDataProtomatter Manual? 0 Play Time 00:14:13 Cumulative 261.2 hours Start 2020.09.20 @ 20:16:37 End 2020.09.20 @ 20:28:36 Sessions 1 Manual Loads 0 Difficulty Rogue Special Mode AFD2020/Player2 Game No. 107 Rogue 107 Adventurer 0 Explorer 0 Win Type - Total 4 Types 3/0/0/1/0/0/0/0/0 Lore% 83 Gallery% 86 Achievement% 69 Wizard Run 0 Options --------- ASCII 0 Keyboard 0 Movement Numpad Keybinds 0 Fullscreen 1 Font 18/SmallcapsGlow Map View 76x50 Tactical HUD 1 Map Filters NONE Filters NONE Steam X RUN: 1c43b8d5-b8a0-4edd-8157-a0472b2d940d